[Event "Titled Tuesday Blitz May 24 Late 2022"]
[White "Marin Ramirez, Gerardo"]
[Black "Baches Garcia, Guillermo"]
[WhiteFideId "3901068"]
[BlackFideId "2209764"]
[WhiteElo "1920"]
[BlackElo "2468"]
[Result "0-1"]
[Round "02"]
[TimeControl "180+1"]
[Date "2022.05.25"]
[WhiteClock "0:00:28"]
[BlackClock "0:00:43"]

1. d4 {[%clk 0:03:00]}  Nf6 {[%clk 0:02:59]} 2. c4 {[%clk 0:02:59]}  e6 {[%clk 0:03:00]} 3. Nf3 {[%clk 0:02:58]}  d5 {[%clk 0:03:00]} 4. Nc3 {[%clk 0:02:57]}  c5 {[%clk 0:02:59]} 5. cxd5 {[%clk 0:02:55]}  Nxd5 {[%clk 0:03:00]} 6. e4 {[%clk 0:02:52]}  Nxc3 {[%clk 0:03:00]} 7. bxc3 {[%clk 0:02:52]}  cxd4 {[%clk 0:03:01]} 8. cxd4 {[%clk 0:02:51]}  Bb4+ {[%clk 0:03:01]} 9. Bd2 {[%clk 0:02:50]}  Bxd2+ {[%clk 0:03:02]} 10. Qxd2 {[%clk 0:02:50]}  O-O {[%clk 0:03:02]} 11. Bd3 {[%clk 0:02:38]}  Nc6 {[%clk 0:03:01]} 12. Qc3 {[%clk 0:02:22]}  Qd6 {[%clk 0:02:56]} 13. O-O-O {[%clk 0:02:19]}  Bd7 {[%clk 0:02:41]} 14. Kb1 {[%clk 0:02:18]}  Rac8 {[%clk 0:02:37]} 15. e5 {[%clk 0:02:05]}  Qe7 {[%clk 0:02:19]} 16. Qb2 {[%clk 0:01:58]}  Nb4 {[%clk 0:02:12]} 17. Be4 {[%clk 0:01:55]}  Bc6 {[%clk 0:02:07]} 18. Bxc6 {[%clk 0:01:53]}  Rxc6 {[%clk 0:02:07]} 19. Rd2 {[%clk 0:01:48]}  Rfc8 {[%clk 0:01:56]} 20. Rhd1 {[%clk 0:01:18]}  Rb6 {[%clk 0:01:46]} 21. Ka1 {[%clk 0:01:14]}  Nd5 {[%clk 0:01:07]} 22. Rc2 {[%clk 0:01:12]}  Rd8 {[%clk 0:00:51]} 23. Qc1 {[%clk 0:01:05]}  h6 {[%clk 0:00:45]} 24. Rd3 {[%clk 0:01:02]}  Nb4 {[%clk 0:00:44]} 25. Qa3 {[%clk 0:00:28]}  Nxc2# {[%clk 0:00:43]} 0-1


[Site "https://www.chess.com"]

[Event "Titled Tuesday Blitz May 24 Late 2022"]
[White "Matinian, Nikita"]
[Black "Romero Ruscalleda, Josep"]
[WhiteFideId "24129100"]
[BlackFideId "2231859"]
[WhiteElo "2422"]
[BlackElo "2327"]
[Result "1-0"]
[Round "02"]
[TimeControl "180+1"]
[Date "2022.05.25"]
[WhiteClock "0:02:22"]
[BlackClock "0:00:38"]

1. e4 {[%clk 0:03:00]}  g6 {[%clk 0:03:00]} 2. d4 {[%clk 0:03:00]}  Bg7 {[%clk 0:03:01]} 3. Nc3 {[%clk 0:03:01]}  d6 {[%clk 0:03:01]} 4. Be3 {[%clk 0:02:59]}  a6 {[%clk 0:03:02]} 5. g4 {[%clk 0:02:59]}  b5 {[%clk 0:02:57]} 6. Bg2 {[%clk 0:02:58]}  Bb7 {[%clk 0:02:57]} 7. h4 {[%clk 0:02:53]}  h5 {[%clk 0:02:56]} 8. g5 {[%clk 0:02:53]}  Nd7 {[%clk 0:02:55]} 9. f4 {[%clk 0:02:50]}  e6 {[%clk 0:02:55]} 10. a3 {[%clk 0:02:47]}  Ne7 {[%clk 0:02:54]} 11. Nge2 {[%clk 0:02:47]}  Rc8 {[%clk 0:02:52]} 12. Ng3 {[%clk 0:02:43]}  Nb6 {[%clk 0:02:46]} 13. O-O {[%clk 0:02:33]}  Nc4 {[%clk 0:02:32]} 14. Qe2 {[%clk 0:02:33]}  Nxe3 {[%clk 0:02:29]} 15. Qxe3 {[%clk 0:02:34]}  c6 {[%clk 0:02:25]} 16. f5 {[%clk 0:02:30]}  gxf5 {[%clk 0:01:29]} 17. exf5 {[%clk 0:02:31]}  Nd5 {[%clk 0:00:50]} 18. Nxd5 {[%clk 0:02:26]}  cxd5 {[%clk 0:00:50]} 19. fxe6 {[%clk 0:02:24]}  O-O {[%clk 0:00:49]} 20. e7 {[%clk 0:02:23]}  Qe8 {[%clk 0:00:38]} 21. exf8=Q+ {[%clk 0:02:22]} 1-0


[Site "https://www.chess.com"]

[Event "Titled Tuesday Blitz May 24 Late 2022"]
[White "Melikhov, Evgeny V."]
[Black "Stoleriu, George"]
[WhiteFideId "4122046"]
[BlackFideId "1227505"]
[WhiteElo "1931"]
[BlackElo "2194"]
[Result "1-0"]
[Round "02"]
[TimeControl "180+1"]
[Date "2022.05.25"]
[WhiteClock "0:00:34"]
[BlackClock "0:00:12"]

1. d4 {[%clk 0:03:00]}  e6 {[%clk 0:02:55]} 2. c4 {[%clk 0:03:00]}  Nf6 {[%clk 0:02:52]} 3. Nc3 {[%clk 0:03:00]}  Bb4 {[%clk 0:02:52]} 4. Qc2 {[%clk 0:03:00]}  O-O {[%clk 0:02:51]} 5. e4 {[%clk 0:03:00]}  d5 {[%clk 0:02:50]} 6. e5 {[%clk 0:03:00]}  Ne4 {[%clk 0:02:51]} 7. Bd3 {[%clk 0:03:00]}  c5 {[%clk 0:02:51]} 8. Nf3 {[%clk 0:03:00]}  cxd4 {[%clk 0:02:52]} 9. Nxd4 {[%clk 0:03:00]}  Nd7 {[%clk 0:02:53]} 10. Bf4 {[%clk 0:03:00]}  Qh4 {[%clk 0:02:44]} 11. g3 {[%clk 0:03:00]}  Qh5 {[%clk 0:02:43]} 12. O-O {[%clk 0:03:00]}  g5 {[%clk 0:02:10]} 13. cxd5 {[%clk 0:02:23]}  Bxc3 {[%clk 0:01:55]} 14. bxc3 {[%clk 0:02:19]}  exd5 {[%clk 0:01:49]} 15. e6 {[%clk 0:02:03]}  gxf4 {[%clk 0:01:43]} 16. exd7 {[%clk 0:01:52]}  Bxd7 {[%clk 0:01:44]} 17. Bxe4 {[%clk 0:01:52]}  dxe4 {[%clk 0:01:45]} 18. Qxe4 {[%clk 0:01:50]}  fxg3 {[%clk 0:01:45]} 19. hxg3 {[%clk 0:01:41]}  b6 {[%clk 0:01:44]} 20. Rfe1 {[%clk 0:01:34]}  Rac8 {[%clk 0:01:31]} 21. Qb7 {[%clk 0:01:27]}  Bg4 {[%clk 0:01:19]} 22. Re3 {[%clk 0:01:25]}  Rfd8 {[%clk 0:01:18]} 23. Rae1 {[%clk 0:01:18]}  Rd6 {[%clk 0:00:58]} 24. Re5 {[%clk 0:01:02]}  Qg6 {[%clk 0:00:52]} 25. Re8+ {[%clk 0:00:56]}  Rxe8 {[%clk 0:00:52]} 26. Rxe8+ {[%clk 0:00:56]}  Kg7 {[%clk 0:00:53]} 27. Qb8 {[%clk 0:00:55]}  Qb1+ {[%clk 0:00:21]} 28. Kg2 {[%clk 0:00:54]}  Bh3+ {[%clk 0:00:16]} 29. Kh2 {[%clk 0:00:44]}  Rh6 {[%clk 0:00:16]} 30. Rg8+ {[%clk 0:00:43]}  Kf6 {[%clk 0:00:17]} 31. Qf4+ {[%clk 0:00:36]}  Bf5+ {[%clk 0:00:11]} 32. Qxh6+ {[%clk 0:00:35]}  Ke5 {[%clk 0:00:12]} 33. Qf4+ {[%clk 0:00:34]} 1-0


[Site "https://www.chess.com"]

[Event "Titled Tuesday Blitz May 24 Late 2022"]
[White "Msellek, Ilyass"]
[Black "Riehle, Marco"]
[WhiteFideId "675938"]
[BlackFideId "12904392"]
[WhiteElo "2221"]
[BlackElo "2462"]
[Result "0-1"]
[Round "02"]
[TimeControl "180+1"]
[Date "2022.05.24"]
[WhiteClock "0:00:01"]
[BlackClock "0:01:26"]

1. d4 {[%clk 0:03:00]}  d5 {[%clk 0:02:59]} 2. c4 {[%clk 0:03:01]}  e6 {[%clk 0:02:59]} 3. Nc3 {[%clk 0:03:01]}  c5 {[%clk 0:02:59]} 4. cxd5 {[%clk 0:03:00]}  cxd4 {[%clk 0:02:59]} 5. Qxd4 {[%clk 0:03:01]}  Nc6 {[%clk 0:02:58]} 6. Qd1 {[%clk 0:02:50]}  exd5 {[%clk 0:02:59]} 7. Qxd5 {[%clk 0:02:51]}  Be6 {[%clk 0:02:58]} 8. Qd1 {[%clk 0:01:24]}  Qxd1+ {[%clk 0:02:57]} 9. Kxd1 {[%clk 0:01:25]}  O-O-O+ {[%clk 0:02:57]} 10. Bd2 {[%clk 0:01:25]}  Nf6 {[%clk 0:02:53]} 11. e3 {[%clk 0:01:20]}  Bb4 {[%clk 0:02:50]} 12. Nf3 {[%clk 0:01:12]}  Bxc3 {[%clk 0:02:44]} 13. bxc3 {[%clk 0:01:13]}  Ne4 {[%clk 0:02:45]} 14. Ke1 {[%clk 0:01:11]}  Bg4 {[%clk 0:02:41]} 15. Rd1 {[%clk 0:01:03]}  Ne5 {[%clk 0:02:38]} 16. Be2 {[%clk 0:00:53]}  Nd3+ {[%clk 0:02:36]} 17. Bxd3 {[%clk 0:00:46]}  Rxd3 {[%clk 0:02:36]} 18. Ne5 {[%clk 0:00:47]}  Bxd1 {[%clk 0:02:28]} 19. Nxd3 {[%clk 0:00:45]}  Ba4 {[%clk 0:02:27]} 20. Nb2 {[%clk 0:00:39]}  Rd8 {[%clk 0:02:23]} 21. Bc1 {[%clk 0:00:19]}  Nxc3 {[%clk 0:02:21]} 22. f3 {[%clk 0:00:18]}  Nxa2 {[%clk 0:02:12]} 23. Bd2 {[%clk 0:00:10]}  Bb5 {[%clk 0:02:10]} 24. e4 {[%clk 0:00:08]}  f6 {[%clk 0:02:04]} 25. h4 {[%clk 0:00:07]}  b6 {[%clk 0:02:02]} 26. h5 {[%clk 0:00:07]}  a5 {[%clk 0:02:02]} 27. h6 {[%clk 0:00:08]}  g6 {[%clk 0:02:02]} 28. Rh3 {[%clk 0:00:06]}  a4 {[%clk 0:02:02]} 29. f4 {[%clk 0:00:07]}  Rd4 {[%clk 0:01:53]} 30. e5 {[%clk 0:00:03]}  fxe5 {[%clk 0:01:48]} 31. fxe5 {[%clk 0:00:04]}  Re4+ {[%clk 0:01:48]} 32. Kd1 {[%clk 0:00:03]}  Nb4 {[%clk 0:01:41]} 33. Ra3 {[%clk 0:00:02]}  Nc6 {[%clk 0:01:38]} 34. g4 {[%clk 0:00:01]}  Nxe5 {[%clk 0:01:32]} 35. Rc3+ {[%clk 0:00:01]}  Kb7 {[%clk 0:01:31]} 36. Kc2 {[%clk 0:00:01]}  Nxg4 {[%clk 0:01:28]} 37. Rf3 {[%clk 0:00:01]}  Ne5 {[%clk 0:01:26]} 38. Rf6 {[%clk 0:00:01]}  a3 {[%clk 0:01:26]} 0-1


[Site "https://www.chess.com"]

[Event "Titled Tuesday Blitz May 24 Late 2022"]
[White "Nakamura, Hikaru"]
[Black "Sokolovsky, Yahli"]
[WhiteFideId "2016192"]
[BlackFideId "2820242"]
[WhiteElo "2850"]
[BlackElo "1770"]
[Result "1-0"]
[Round "02"]
[TimeControl "180+1"]
[Date "2022.05.24"]
[WhiteClock "0:02:03"]
[BlackClock "0:00:03"]

1. Nf3 {[%clk 0:03:00]}  g6 {[%clk 0:02:59]} 2. e4 {[%clk 0:02:59]}  Bg7 {[%clk 0:02:59]} 3. d4 {[%clk 0:02:59]}  d6 {[%clk 0:03:00]} 4. Bc4 {[%clk 0:02:59]}  e6 {[%clk 0:03:00]} 5. Bb3 {[%clk 0:02:58]}  Ne7 {[%clk 0:03:00]} 6. h4 {[%clk 0:02:59]}  h5 {[%clk 0:02:51]} 7. Bg5 {[%clk 0:02:56]}  c5 {[%clk 0:02:46]} 8. c3 {[%clk 0:02:56]}  Nbc6 {[%clk 0:02:45]} 9. dxc5 {[%clk 0:02:54]}  dxc5 {[%clk 0:02:44]} 10. Qxd8+ {[%clk 0:02:54]}  Nxd8 {[%clk 0:02:43]} 11. Nbd2 {[%clk 0:02:54]}  Bd7 {[%clk 0:02:02]} 12. Nc4 {[%clk 0:02:53]}  Nc8 {[%clk 0:02:02]} 13. O-O-O {[%clk 0:02:50]}  Nc6 {[%clk 0:01:59]} 14. a4 {[%clk 0:02:47]}  e5 {[%clk 0:01:37]} 15. Nd6+ {[%clk 0:02:34]}  Nxd6 {[%clk 0:01:37]} 16. Rxd6 {[%clk 0:02:35]}  Bg4 {[%clk 0:01:23]} 17. Bd5 {[%clk 0:02:30]}  Rc8 {[%clk 0:01:13]} 18. Rd1 {[%clk 0:02:29]}  O-O {[%clk 0:01:09]} 19. Rxg6 {[%clk 0:02:27]}  Kh7 {[%clk 0:00:38]} 20. Rd6 {[%clk 0:02:27]}  f6 {[%clk 0:00:24]} 21. Be3 {[%clk 0:02:27]}  Na5 {[%clk 0:00:20]} 22. Be6 {[%clk 0:02:23]}  Bxe6 {[%clk 0:00:19]} 23. Rxe6 {[%clk 0:02:24]}  Rc7 {[%clk 0:00:19]} 24. Rd5 {[%clk 0:02:22]}  Rb8 {[%clk 0:00:15]} 25. Nd2 {[%clk 0:02:21]}  Rbc8 {[%clk 0:00:14]} 26. Red6 {[%clk 0:02:19]}  Kg8 {[%clk 0:00:11]} 27. Rd7 {[%clk 0:02:18]}  b6 {[%clk 0:00:11]} 28. f3 {[%clk 0:02:16]}  Kf8 {[%clk 0:00:11]} 29. Rxc7 {[%clk 0:02:15]}  Rxc7 {[%clk 0:00:11]} 30. Kc2 {[%clk 0:02:15]}  Ke7 {[%clk 0:00:11]} 31. Nf1 {[%clk 0:02:15]}  Ke6 {[%clk 0:00:05]} 32. Ng3 {[%clk 0:02:15]}  Nc4 {[%clk 0:00:06]} 33. Bc1 {[%clk 0:02:15]}  Bh8 {[%clk 0:00:03]} 34. Nxh5 {[%clk 0:02:15]}  Rh7 {[%clk 0:00:03]} 35. g4 {[%clk 0:02:15]}  Bg7 {[%clk 0:00:03]} 36. Nxg7+ {[%clk 0:02:15]}  Rxg7 {[%clk 0:00:04]} 37. h5 {[%clk 0:02:15]}  Nd6 {[%clk 0:00:04]} 38. Rd1 {[%clk 0:02:12]}  Nf7 {[%clk 0:00:04]} 39. Be3 {[%clk 0:02:11]}  Rh7 {[%clk 0:00:04]} 40. Kd3 {[%clk 0:02:11]}  Rh8 {[%clk 0:00:04]} 41. Kc4 {[%clk 0:02:11]}  Nd6+ {[%clk 0:00:04]} 42. Kb3 {[%clk 0:02:08]}  Nf7 {[%clk 0:00:05]} 43. a5 {[%clk 0:02:08]}  Rb8 {[%clk 0:00:03]} 44. a6 {[%clk 0:02:06]}  Rc8 {[%clk 0:00:03]} 45. h6 {[%clk 0:02:06]}  Rh8 {[%clk 0:00:03]} 46. Rh1 {[%clk 0:02:06]}  Rh7 {[%clk 0:00:04]} 47. Ka4 {[%clk 0:02:06]}  Nd6 {[%clk 0:00:05]} 48. b3 {[%clk 0:02:05]}  Kf7 {[%clk 0:00:05]} 49. b4 {[%clk 0:02:05]}  b5+ {[%clk 0:00:04]} 50. Kb3 {[%clk 0:02:05]}  c4+ {[%clk 0:00:03]} 51. Kc2 {[%clk 0:02:05]}  Ke6 {[%clk 0:00:03]} 52. Kd2 {[%clk 0:02:03]} 1-0


[Site "https://www.chess.com"]

[Event "Titled Tuesday Blitz May 24 Late 2022"]
[White "Onslow, Alfie"]
[Black "D`Arruda, Ricardo D."]
[WhiteFideId "436976"]
[BlackFideId "100692"]
[WhiteElo "1885"]
[BlackElo "2497"]
[Result "0-1"]
[Round "02"]
[TimeControl "180+1"]
[Date "2022.05.25"]
[WhiteClock "0:00:01"]
[BlackClock "0:00:16"]

1. e4 {[%clk 0:03:00]}  c5 {[%clk 0:02:52]} 2. Nc3 {[%clk 0:02:59]}  e6 {[%clk 0:02:51]} 3. Nf3 {[%clk 0:02:58]}  Nf6 {[%clk 0:02:48]} 4. e5 {[%clk 0:02:54]}  Nd5 {[%clk 0:02:48]} 5. g3 {[%clk 0:02:49]}  d6 {[%clk 0:02:44]} 6. Bg2 {[%clk 0:02:48]}  Nc6 {[%clk 0:02:42]} 7. Qe2 {[%clk 0:02:43]}  Be7 {[%clk 0:02:37]} 8. O-O {[%clk 0:02:36]}  O-O {[%clk 0:02:36]} 9. exd6 {[%clk 0:02:28]}  Qxd6 {[%clk 0:02:37]} 10. Ne4 {[%clk 0:02:28]}  Qc7 {[%clk 0:02:34]} 11. c3 {[%clk 0:02:27]}  b6 {[%clk 0:02:34]} 12. d3 {[%clk 0:02:26]}  Bb7 {[%clk 0:02:32]} 13. h4 {[%clk 0:02:15]}  h6 {[%clk 0:02:30]} 14. Nh2 {[%clk 0:02:13]}  Rad8 {[%clk 0:02:22]} 15. a3 {[%clk 0:02:07]}  Rfe8 {[%clk 0:02:14]} 16. c4 {[%clk 0:01:55]}  Nd4 {[%clk 0:02:04]} 17. Qd1 {[%clk 0:01:50]}  Nf6 {[%clk 0:02:02]} 18. Nxf6+ {[%clk 0:01:49]}  Bxf6 {[%clk 0:02:03]} 19. Ng4 {[%clk 0:01:48]}  Be7 {[%clk 0:01:59]} 20. Be3 {[%clk 0:01:39]}  Bxg2 {[%clk 0:01:57]} 21. Kxg2 {[%clk 0:01:40]}  Qc6+ {[%clk 0:01:53]} 22. f3 {[%clk 0:01:41]}  Nf5 {[%clk 0:01:47]} 23. Qe2 {[%clk 0:01:37]}  h5 {[%clk 0:01:35]} 24. Nf2 {[%clk 0:01:36]}  Bf6 {[%clk 0:01:30]} 25. Ne4 {[%clk 0:01:28]}  Bxb2 {[%clk 0:01:27]} 26. Rae1 {[%clk 0:01:12]}  Bd4 {[%clk 0:01:26]} 27. Bxd4 {[%clk 0:01:10]}  cxd4 {[%clk 0:01:26]} 28. Kh2 {[%clk 0:00:54]}  Ne3 {[%clk 0:01:23]} 29. Rg1 {[%clk 0:00:52]}  f5 {[%clk 0:01:20]} 30. Ng5 {[%clk 0:00:51]}  e5 {[%clk 0:01:18]} 31. f4 {[%clk 0:00:43]}  Ng4+ {[%clk 0:01:13]} 32. Kh3 {[%clk 0:00:40]}  exf4 {[%clk 0:01:11]} 33. Qa2 {[%clk 0:00:31]}  Re3 {[%clk 0:01:01]} 34. c5+ {[%clk 0:00:09]}  Qd5 {[%clk 0:01:00]} 35. Qxd5+ {[%clk 0:00:07]}  Rxd5 {[%clk 0:01:01]} 36. c6 {[%clk 0:00:07]}  Rc5 {[%clk 0:00:58]} 37. Rc1 {[%clk 0:00:08]}  Re7 {[%clk 0:00:33]} 38. Rxc5 {[%clk 0:00:06]}  bxc5 {[%clk 0:00:33]} 39. gxf4 {[%clk 0:00:05]}  Nf2+ {[%clk 0:00:21]} 40. Kg2 {[%clk 0:00:04]}  Nxd3 {[%clk 0:00:22]} 41. Rd1 {[%clk 0:00:03]}  Nxf4+ {[%clk 0:00:22]} 42. Kf3 {[%clk 0:00:04]}  Nd5 {[%clk 0:00:22]} 43. Rc1 {[%clk 0:00:04]}  Nc3 {[%clk 0:00:21]} 44. Kf4 {[%clk 0:00:03]}  Rc7 {[%clk 0:00:21]} 45. Nf3 {[%clk 0:00:02]}  Rxc6 {[%clk 0:00:21]} 46. Ne5 {[%clk 0:00:03]}  Ra6 {[%clk 0:00:19]} 47. Kxf5 {[%clk 0:00:03]}  Rxa3 {[%clk 0:00:18]} 48. Rg1 {[%clk 0:00:03]}  Ra2 {[%clk 0:00:17]} 49. Ke6 {[%clk 0:00:02]}  Rf2 {[%clk 0:00:18]} 50. Rg5 {[%clk 0:00:01]}  Re2 {[%clk 0:00:17]} 51. Rxh5 {[%clk 0:00:02]}  g6 {[%clk 0:00:17]} 52. Rg5 {[%clk 0:00:01]}  Kh7 {[%clk 0:00:18]} 53. h5 {[%clk 0:00:01]}  gxh5 {[%clk 0:00:17]} 54. Kf7 {[%clk 0:00:01]}  Rf2+ {[%clk 0:00:17]} 55. Ke7 {[%clk 0:00:02]}  Nd5+ {[%clk 0:00:16]} 56. Ke6 {[%clk 0:00:02]}  Nf4+ {[%clk 0:00:17]} 57. Kf5 {[%clk 0:00:02]}  d3 {[%clk 0:00:16]} 58. Ke4 {[%clk 0:00:01]}  d2 {[%clk 0:00:16]} 0-1


[Site "https://www.chess.com"]

[Event "Titled Tuesday Blitz May 24 Late 2022"]
[White "Oparin, Grigoriy"]
[Black "Jaracz, Pawel"]
[WhiteFideId "24125890"]
[BlackFideId "1102222"]
[WhiteElo "2665"]
[BlackElo "2429"]
[Result "1-0"]
[Round "02"]
[TimeControl "180+1"]
[Date "2022.05.24"]
[WhiteClock "0:00:09"]
[BlackClock "0:00:02"]

1. c4 {[%clk 0:03:00]}  e6 {[%clk 0:02:58]} 2. Nf3 {[%clk 0:03:00]}  d5 {[%clk 0:02:58]} 3. g3 {[%clk 0:03:01]}  d4 {[%clk 0:02:58]} 4. Bg2 {[%clk 0:02:59]}  Nc6 {[%clk 0:02:57]} 5. d3 {[%clk 0:02:58]}  Nf6 {[%clk 0:02:55]} 6. O-O {[%clk 0:02:51]}  a5 {[%clk 0:02:50]} 7. e3 {[%clk 0:02:43]}  dxe3 {[%clk 0:02:48]} 8. Bxe3 {[%clk 0:02:41]}  Ng4 {[%clk 0:02:48]} 9. Nc3 {[%clk 0:02:37]}  Be7 {[%clk 0:02:45]} 10. d4 {[%clk 0:02:36]}  Nxe3 {[%clk 0:02:43]} 11. fxe3 {[%clk 0:02:36]}  O-O {[%clk 0:02:44]} 12. Qe2 {[%clk 0:02:36]}  a4 {[%clk 0:02:29]} 13. Rad1 {[%clk 0:02:33]}  a3 {[%clk 0:02:29]} 14. b3 {[%clk 0:02:33]}  Nb4 {[%clk 0:02:29]} 15. e4 {[%clk 0:02:30]}  c5 {[%clk 0:02:07]} 16. d5 {[%clk 0:02:30]}  exd5 {[%clk 0:02:06]} 17. cxd5 {[%clk 0:02:31]}  b6 {[%clk 0:01:58]} 18. Qe3 {[%clk 0:02:05]}  Ba6 {[%clk 0:01:56]} 19. Rf2 {[%clk 0:02:05]}  c4 {[%clk 0:01:40]} 20. bxc4 {[%clk 0:01:39]}  Bc5 {[%clk 0:01:39]} 21. Nd4 {[%clk 0:01:39]}  f6 {[%clk 0:01:28]} 22. h4 {[%clk 0:01:36]}  Bxc4 {[%clk 0:01:25]} 23. Kh2 {[%clk 0:01:36]}  Re8 {[%clk 0:01:22]} 24. Qf3 {[%clk 0:01:32]}  Qd6 {[%clk 0:01:08]} 25. Rfd2 {[%clk 0:01:28]}  Bxd4 {[%clk 0:00:58]} 26. Rxd4 {[%clk 0:01:28]}  b5 {[%clk 0:00:58]} 27. Bf1 {[%clk 0:01:16]}  Bxf1 {[%clk 0:00:49]} 28. Qxf1 {[%clk 0:01:17]}  Qc5 {[%clk 0:00:44]} 29. Qxb5 {[%clk 0:01:03]}  Qxc3 {[%clk 0:00:27]} 30. Qxb4 {[%clk 0:01:03]}  Qf3 {[%clk 0:00:26]} 31. R1d2 {[%clk 0:00:50]}  Rab8 {[%clk 0:00:26]} 32. Qa4 {[%clk 0:00:50]}  Rec8 {[%clk 0:00:23]} 33. R4d3 {[%clk 0:00:40]}  Qf1 {[%clk 0:00:21]} 34. Qd1 {[%clk 0:00:32]}  Qxd1 {[%clk 0:00:20]} 35. Rxd1 {[%clk 0:00:33]}  Rc2+ {[%clk 0:00:18]} 36. R1d2 {[%clk 0:00:25]}  Rxd2+ {[%clk 0:00:18]} 37. Rxd2 {[%clk 0:00:26]}  Rb2 {[%clk 0:00:18]} 38. Rg2 {[%clk 0:00:26]}  h5 {[%clk 0:00:15]} 39. Kh3 {[%clk 0:00:23]}  Kf7 {[%clk 0:00:15]} 40. Rg1 {[%clk 0:00:19]}  Rxa2 {[%clk 0:00:14]} 41. Rc1 {[%clk 0:00:19]}  Re2 {[%clk 0:00:11]} 42. Rc7+ {[%clk 0:00:20]}  Kg6 {[%clk 0:00:12]} 43. Ra7 {[%clk 0:00:19]}  a2 {[%clk 0:00:12]} 44. d6 {[%clk 0:00:19]}  Rxe4 {[%clk 0:00:12]} 45. Rxa2 {[%clk 0:00:19]}  Rd4 {[%clk 0:00:12]} 46. Ra6 {[%clk 0:00:20]}  Kf5 {[%clk 0:00:12]} 47. Ra5+ {[%clk 0:00:20]}  Kg6 {[%clk 0:00:11]} 48. Ra6 {[%clk 0:00:20]}  Rd5 {[%clk 0:00:12]} 49. Kg2 {[%clk 0:00:19]}  Kf5 {[%clk 0:00:12]} 50. Ra7 {[%clk 0:00:19]}  g5 {[%clk 0:00:12]} 51. hxg5 {[%clk 0:00:16]}  fxg5 {[%clk 0:00:13]} 52. d7 {[%clk 0:00:16]}  Rd2+ {[%clk 0:00:10]} 53. Kf3 {[%clk 0:00:14]}  Rd3+ {[%clk 0:00:11]} 54. Ke2 {[%clk 0:00:14]}  Rd5 {[%clk 0:00:10]} 55. Ra5 {[%clk 0:00:14]}  Rxa5 {[%clk 0:00:06]} 56. d8=Q {[%clk 0:00:15]}  Re5+ {[%clk 0:00:06]} 57. Kf2 {[%clk 0:00:15]}  Re6 {[%clk 0:00:05]} 58. Qg8 {[%clk 0:00:12]}  Rf6 {[%clk 0:00:05]} 59. Kg2 {[%clk 0:00:11]}  Kg4 {[%clk 0:00:04]} 60. Qc8+ {[%clk 0:00:09]}  Rf5 {[%clk 0:00:02]} 61. Qc4+ {[%clk 0:00:09]} 1-0


[Site "https://www.chess.com"]

[Event "Titled Tuesday Blitz May 24 Late 2022"]
[White "Paravyan, David"]
[Black "De Souza, Regis Gabetta"]
[WhiteFideId "4194985"]
[BlackFideId "22756930"]
[WhiteElo "2569"]
[BlackElo "1926"]
[Result "1/2-1/2"]
[Round "02"]
[TimeControl "180+1"]
[Date "2022.05.24"]
[WhiteClock "0:00:07"]
[BlackClock "0:00:10"]

1. e4 {[%clk 0:03:00]}  c5 {[%clk 0:02:58]} 2. Nf3 {[%clk 0:03:00]}  e6 {[%clk 0:02:58]} 3. d4 {[%clk 0:03:00]}  cxd4 {[%clk 0:02:59]} 4. Nxd4 {[%clk 0:03:00]}  a6 {[%clk 0:03:00]} 5. Nc3 {[%clk 0:02:59]}  Qc7 {[%clk 0:03:00]} 6. Bd3 {[%clk 0:02:59]}  Nf6 {[%clk 0:02:58]} 7. O-O {[%clk 0:02:59]}  Nc6 {[%clk 0:02:56]} 8. Nxc6 {[%clk 0:02:57]}  bxc6 {[%clk 0:02:56]} 9. Qe2 {[%clk 0:02:56]}  d6 {[%clk 0:02:55]} 10. f4 {[%clk 0:02:56]}  e5 {[%clk 0:02:50]} 11. Kh1 {[%clk 0:02:56]}  Be7 {[%clk 0:02:50]} 12. fxe5 {[%clk 0:02:52]}  dxe5 {[%clk 0:02:51]} 13. Bg5 {[%clk 0:02:52]}  O-O {[%clk 0:02:48]} 14. Bc4 {[%clk 0:02:46]}  a5 {[%clk 0:02:46]} 15. b3 {[%clk 0:02:39]}  h6 {[%clk 0:02:31]} 16. Bh4 {[%clk 0:02:35]}  Bg4 {[%clk 0:02:30]} 17. Qe3 {[%clk 0:02:33]}  Nh5 {[%clk 0:02:08]} 18. Bxe7 {[%clk 0:02:24]}  Qxe7 {[%clk 0:02:08]} 19. Rf2 {[%clk 0:02:20]}  Be6 {[%clk 0:02:03]} 20. Bxe6 {[%clk 0:02:11]}  Qxe6 {[%clk 0:02:04]} 21. Rf5 {[%clk 0:02:11]}  Nf4 {[%clk 0:01:56]} 22. Ne2 {[%clk 0:02:00]}  Ng6 {[%clk 0:01:53]} 23. a4 {[%clk 0:01:58]}  c5 {[%clk 0:01:39]} 24. Nc3 {[%clk 0:01:54]}  c4 {[%clk 0:01:39]} 25. Nd5 {[%clk 0:01:53]}  cxb3 {[%clk 0:01:31]} 26. cxb3 {[%clk 0:01:54]}  Rab8 {[%clk 0:01:25]} 27. Raf1 {[%clk 0:01:51]}  Qc6 {[%clk 0:01:20]} 28. h4 {[%clk 0:01:47]}  Qe6 {[%clk 0:01:13]} 29. Qg3 {[%clk 0:01:32]}  Nf4 {[%clk 0:01:05]} 30. Nxf4 {[%clk 0:01:07]}  exf4 {[%clk 0:01:06]} 31. Qxf4 {[%clk 0:01:05]}  Rxb3 {[%clk 0:01:04]} 32. Rxa5 {[%clk 0:01:04]}  Rb4 {[%clk 0:01:00]} 33. Re5 {[%clk 0:01:01]}  Qa6 {[%clk 0:00:54]} 34. a5 {[%clk 0:01:00]}  Ra4 {[%clk 0:00:52]} 35. Re7 {[%clk 0:00:55]}  Qg6 {[%clk 0:00:45]} 36. Qf5 {[%clk 0:00:53]}  Qxf5 {[%clk 0:00:27]} 37. Rxf5 {[%clk 0:00:54]}  f6 {[%clk 0:00:25]} 38. Rd5 {[%clk 0:00:45]}  Kh8 {[%clk 0:00:17]} 39. h5 {[%clk 0:00:17]}  Ra8 {[%clk 0:00:17]} 40. Rdd7 {[%clk 0:00:11]}  Rg8 {[%clk 0:00:17]} 41. Ra7 {[%clk 0:00:11]}  Kh7 {[%clk 0:00:14]} 42. Kh2 {[%clk 0:00:11]}  Ra3 {[%clk 0:00:12]} 43. g3 {[%clk 0:00:11]}  Kh8 {[%clk 0:00:12]} 44. Kh3 {[%clk 0:00:11]}  Kh7 {[%clk 0:00:11]} 45. Kg4 {[%clk 0:00:12]}  Kh8 {[%clk 0:00:12]} 46. Kf4 {[%clk 0:00:12]}  Ra1 {[%clk 0:00:11]} 47. Kf5 {[%clk 0:00:12]}  Kh7 {[%clk 0:00:11]} 48. Kg4 {[%clk 0:00:08]}  Ra4 {[%clk 0:00:10]} 49. Kf4 {[%clk 0:00:09]}  Ra1 {[%clk 0:00:10]} 50. e5 {[%clk 0:00:09]}  fxe5+ {[%clk 0:00:10]} 51. Kxe5 {[%clk 0:00:09]}  Re1+ {[%clk 0:00:10]} 52. Kf4 {[%clk 0:00:09]}  Rf1+ {[%clk 0:00:10]} 53. Kg4 {[%clk 0:00:09]}  Ra1 {[%clk 0:00:11]} 54. Kh3 {[%clk 0:00:08]}  Rh1+ {[%clk 0:00:10]} 55. Kg4 {[%clk 0:00:07]}  Ra1 {[%clk 0:00:11]} 56. Re4 {[%clk 0:00:07]}  Rc8 {[%clk 0:00:10]} 57. Rf4 {[%clk 0:00:06]}  Rc5 {[%clk 0:00:09]} 58. a6 {[%clk 0:00:03]}  Rg5+ {[%clk 0:00:07]} 59. Kf3 {[%clk 0:00:04]}  Ra3+ {[%clk 0:00:07]} 60. Kf2 {[%clk 0:00:03]}  Rgxg3 {[%clk 0:00:03]} 61. Ra8 {[%clk 0:00:01]}  Rg5 {[%clk 0:00:02]} 62. Rh4 {[%clk 0:00:01]}  Rf5+ {[%clk 0:00:02]} 63. Kg2 {[%clk 0:00:01]}  Rfa5 {[%clk 0:00:03]} 64. a7 {[%clk 0:00:02]}  Rxa7 {[%clk 0:00:03]} 65. Rxa7 {[%clk 0:00:03]}  Rxa7 {[%clk 0:00:04]} 66. Rh1 {[%clk 0:00:02]}  Ra2+ {[%clk 0:00:04]} 67. Kg3 {[%clk 0:00:03]}  Ra3+ {[%clk 0:00:05]} 68. Kg4 {[%clk 0:00:03]}  Ra4+ {[%clk 0:00:05]} 69. Kg3 {[%clk 0:00:04]}  Ra5 {[%clk 0:00:06]} 70. Kg4 {[%clk 0:00:04]}  Rg5+ {[%clk 0:00:07]} 71. Kh4 {[%clk 0:00:05]}  g6 {[%clk 0:00:07]} 72. hxg6+ {[%clk 0:00:05]}  Kxg6 {[%clk 0:00:07]} 73. Ra1 {[%clk 0:00:05]}  Rh5+ {[%clk 0:00:08]} 74. Kg4 {[%clk 0:00:05]}  Rg5+ {[%clk 0:00:09]} 75. Kh4 {[%clk 0:00:06]}  Rh5+ {[%clk 0:00:09]} 76. Kg4 {[%clk 0:00:06]}  Rg5+ {[%clk 0:00:10]} 77. Kh4 {[%clk 0:00:07]} 1/2-1/2


[Site "https://www.chess.com"]